[Event "Titled Tuesday Blitz November 15 Early 2022"]
[White "Godzwon, Iwo"]
[Black "Malka, Samuel"]
[WhiteFideId "21802483"]
[BlackFideId "20643675"]
[WhiteElo "2284"]
[BlackElo "2461"]
[Result "0-1"]
[Round "05"]
[TimeControl "180+1"]
[Date "2022.11.16"]
[WhiteClock "0:00:10"]
[BlackClock "0:00:06"]

1. e4 {[%clk 0:03:00]}  c5 {[%clk 0:02:56]} 2. Nf3 {[%clk 0:02:55]}  Nc6 {[%clk 0:02:56]} 3. d4 {[%clk 0:02:55]}  cxd4 {[%clk 0:02:57]} 4. Nxd4 {[%clk 0:02:56]}  Nf6 {[%clk 0:02:57]} 5. Nc3 {[%clk 0:02:56]}  e5 {[%clk 0:02:57]} 6. Ndb5 {[%clk 0:02:55]}  d6 {[%clk 0:02:58]} 7. Bg5 {[%clk 0:02:54]}  a6 {[%clk 0:02:55]} 8. Bxf6 {[%clk 0:02:53]}  gxf6 {[%clk 0:02:56]} 9. Na3 {[%clk 0:02:54]}  b5 {[%clk 0:02:55]} 10. Nd5 {[%clk 0:02:54]}  Bg7 {[%clk 0:02:53]} 11. g3 {[%clk 0:02:54]}  f5 {[%clk 0:02:51]} 12. Bg2 {[%clk 0:02:54]}  fxe4 {[%clk 0:02:42]} 13. Bxe4 {[%clk 0:02:53]}  Be6 {[%clk 0:02:39]} 14. Qh5 {[%clk 0:02:52]}  Rc8 {[%clk 0:02:14]} 15. c3 {[%clk 0:02:18]}  Ne7 {[%clk 0:02:07]} 16. Rd1 {[%clk 0:02:14]}  Nxd5 {[%clk 0:01:43]} 17. Bxd5 {[%clk 0:02:14]}  O-O {[%clk 0:01:43]} 18. O-O {[%clk 0:02:04]}  Rc5 {[%clk 0:01:23]} 19. Bxe6 {[%clk 0:01:49]}  fxe6 {[%clk 0:01:23]} 20. Rd2 {[%clk 0:01:44]}  d5 {[%clk 0:01:21]} 21. Nc2 {[%clk 0:01:40]}  Qe8 {[%clk 0:01:03]} 22. Qg4 {[%clk 0:01:28]}  Qg6 {[%clk 0:01:00]} 23. Qxg6 {[%clk 0:01:27]}  hxg6 {[%clk 0:01:01]} 24. Nb4 {[%clk 0:01:26]}  a5 {[%clk 0:00:56]} 25. Nd3 {[%clk 0:01:26]}  Rc4 {[%clk 0:00:55]} 26. Re2 {[%clk 0:01:22]}  e4 {[%clk 0:00:50]} 27. Nf4 {[%clk 0:01:22]}  Rxf4 {[%clk 0:00:49]} 28. gxf4 {[%clk 0:01:22]}  b4 {[%clk 0:00:31]} 29. cxb4 {[%clk 0:01:17]}  axb4 {[%clk 0:00:32]} 30. f3 {[%clk 0:01:15]}  e3 {[%clk 0:00:32]} 31. Rd1 {[%clk 0:00:59]}  d4 {[%clk 0:00:25]} 32. Kg2 {[%clk 0:00:56]}  Kf7 {[%clk 0:00:23]} 33. Kg3 {[%clk 0:00:54]}  Bf6 {[%clk 0:00:19]} 34. Kg4 {[%clk 0:00:54]}  Rc8 {[%clk 0:00:16]} 35. Kg3 {[%clk 0:00:49]}  Rc4 {[%clk 0:00:14]} 36. Kg2 {[%clk 0:00:28]}  Rc8 {[%clk 0:00:14]} 37. Rd3 {[%clk 0:00:26]}  Ra8 {[%clk 0:00:15]} 38. Rb3 {[%clk 0:00:22]}  Rxa2 {[%clk 0:00:13]} 39. Rxb4 {[%clk 0:00:22]}  Ra1 {[%clk 0:00:11]} 40. Rb7+ {[%clk 0:00:20]}  Be7 {[%clk 0:00:09]} 41. Rd7 {[%clk 0:00:18]}  Rd1 {[%clk 0:00:09]} 42. b3 {[%clk 0:00:14]}  Kf6 {[%clk 0:00:09]} 43. Kg3 {[%clk 0:00:08]}  Bc5 {[%clk 0:00:09]} 44. Rxe3 {[%clk 0:00:07]}  dxe3 {[%clk 0:00:04]} 45. Rxd1 {[%clk 0:00:07]}  Bb4 {[%clk 0:00:05]} 46. Rd4 {[%clk 0:00:04]}  e2 {[%clk 0:00:05]} 47. Re4 {[%clk 0:00:04]}  e1=Q+ {[%clk 0:00:05]} 48. Rxe1 {[%clk 0:00:04]}  Bxe1+ {[%clk 0:00:05]} 49. Kg4 {[%clk 0:00:05]}  Bb4 {[%clk 0:00:04]} 50. h4 {[%clk 0:00:04]}  Bd2 {[%clk 0:00:04]} 51. Kg3 {[%clk 0:00:02]}  Be1+ {[%clk 0:00:03]} 52. Kg4 {[%clk 0:00:02]}  Bd2 {[%clk 0:00:04]} 53. Kg3 {[%clk 0:00:03]}  Kf5 {[%clk 0:00:04]} 54. Kf2 {[%clk 0:00:03]}  Bxf4 {[%clk 0:00:05]} 55. Ke2 {[%clk 0:00:04]}  Bd6 {[%clk 0:00:05]} 56. Kd3 {[%clk 0:00:05]}  Bb4 {[%clk 0:00:05]} 57. Kd4 {[%clk 0:00:05]}  Kf4 {[%clk 0:00:05]} 58. Kc4 {[%clk 0:00:06]}  Bd6 {[%clk 0:00:05]} 59. b4 {[%clk 0:00:06]}  Bxb4 {[%clk 0:00:04]} 60. Kxb4 {[%clk 0:00:06]}  Kxf3 {[%clk 0:00:05]} 61. Kc4 {[%clk 0:00:07]}  e5 {[%clk 0:00:05]} 62. Kd5 {[%clk 0:00:07]}  e4 {[%clk 0:00:05]} 63. Kd4 {[%clk 0:00:08]}  e3 {[%clk 0:00:05]} 64. Kd3 {[%clk 0:00:09]}  e2 {[%clk 0:00:06]} 65. Kd2 {[%clk 0:00:09]}  Kf2 {[%clk 0:00:06]} 66. h5 {[%clk 0:00:10]}  e1=Q+ {[%clk 0:00:06]} 0-1


[Site "https://www.chess.com"]

[Event "Titled Tuesday Blitz November 15 Early 2022"]
[White "Gurel, Ediz"]
[Black "Ravot, Sylvain"]
[WhiteFideId "44507356"]
[BlackFideId "627763"]
[WhiteElo "2345"]
[BlackElo "2195"]
[Result "1-0"]
[Round "05"]
[TimeControl "180+1"]
[Date "2022.11.16"]
[WhiteClock "0:00:35"]
[BlackClock "0:00:02"]

1. Nf3 {[%clk 0:02:56]}  d5 {[%clk 0:02:58]} 2. g3 {[%clk 0:02:56]}  Nf6 {[%clk 0:02:48]} 3. Bg2 {[%clk 0:02:56]}  c6 {[%clk 0:02:48]} 4. O-O {[%clk 0:02:57]}  Bf5 {[%clk 0:02:47]} 5. c4 {[%clk 0:02:57]}  e6 {[%clk 0:02:47]} 6. d4 {[%clk 0:02:56]}  Nbd7 {[%clk 0:02:43]} 7. b3 {[%clk 0:02:49]}  h6 {[%clk 0:02:38]} 8. Bb2 {[%clk 0:02:47]}  Be7 {[%clk 0:02:32]} 9. Nbd2 {[%clk 0:02:45]}  O-O {[%clk 0:02:33]} 10. Rc1 {[%clk 0:02:36]}  a5 {[%clk 0:02:21]} 11. a3 {[%clk 0:02:33]}  Ne4 {[%clk 0:02:12]} 12. Nxe4 {[%clk 0:02:21]}  Bxe4 {[%clk 0:02:08]} 13. Qd2 {[%clk 0:02:18]}  Qb6 {[%clk 0:01:55]} 14. Qc3 {[%clk 0:02:15]}  a4 {[%clk 0:01:40]} 15. b4 {[%clk 0:02:10]}  dxc4 {[%clk 0:01:40]} 16. Qxc4 {[%clk 0:02:03]}  Bd5 {[%clk 0:01:40]} 17. Qc2 {[%clk 0:02:03]}  Nf6 {[%clk 0:01:40]} 18. Ne5 {[%clk 0:02:01]}  Bxg2 {[%clk 0:01:33]} 19. Kxg2 {[%clk 0:02:01]}  Rfd8 {[%clk 0:01:32]} 20. Rfd1 {[%clk 0:01:59]}  Nd7 {[%clk 0:01:28]} 21. Nc4 {[%clk 0:01:56]}  Qb5 {[%clk 0:01:26]} 22. e4 {[%clk 0:01:54]}  Nb6 {[%clk 0:01:16]} 23. Nxb6 {[%clk 0:01:40]}  Qxb6 {[%clk 0:01:17]} 24. Qc4 {[%clk 0:01:41]}  Qa6 {[%clk 0:01:06]} 25. Rd3 {[%clk 0:01:34]}  Qxc4 {[%clk 0:01:05]} 26. Rxc4 {[%clk 0:01:35]}  Rd7 {[%clk 0:00:50]} 27. Rc1 {[%clk 0:01:26]}  Bf6 {[%clk 0:00:50]} 28. Rcd1 {[%clk 0:01:26]}  Rad8 {[%clk 0:00:50]} 29. Kf1 {[%clk 0:01:26]}  Kf8 {[%clk 0:00:49]} 30. Ke2 {[%clk 0:01:26]}  h5 {[%clk 0:00:34]} 31. Bc3 {[%clk 0:01:23]}  b5 {[%clk 0:00:30]} 32. f4 {[%clk 0:01:13]}  g6 {[%clk 0:00:25]} 33. h3 {[%clk 0:01:13]}  Bg7 {[%clk 0:00:20]} 34. Kf3 {[%clk 0:01:03]}  Ke8 {[%clk 0:00:20]} 35. g4 {[%clk 0:00:59]}  hxg4+ {[%clk 0:00:19]} 36. hxg4 {[%clk 0:01:00]}  Kf8 {[%clk 0:00:19]} 37. Rh1 {[%clk 0:00:51]}  Kg8 {[%clk 0:00:19]} 38. Ke2 {[%clk 0:00:48]}  Kf8 {[%clk 0:00:14]} 39. e5 {[%clk 0:00:42]}  Kg8 {[%clk 0:00:13]} 40. Rdh3 {[%clk 0:00:39]}  Rc8 {[%clk 0:00:12]} 41. Ke3 {[%clk 0:00:35]}  Rdd8 {[%clk 0:00:12]} 42. Ke4 {[%clk 0:00:36]}  Rd7 {[%clk 0:00:11]} 43. f5 {[%clk 0:00:35]}  exf5+ {[%clk 0:00:10]} 44. gxf5 {[%clk 0:00:36]}  gxf5+ {[%clk 0:00:10]} 45. Kxf5 {[%clk 0:00:37]}  Re8 {[%clk 0:00:10]} 46. Rg1 {[%clk 0:00:35]}  Kf8 {[%clk 0:00:08]} 47. Rh7 {[%clk 0:00:32]}  f6 {[%clk 0:00:05]} 48. exf6 {[%clk 0:00:32]}  Rd5+ {[%clk 0:00:04]} 49. Kg6 {[%clk 0:00:32]}  Bxf6 {[%clk 0:00:02]} 50. Rf7+ {[%clk 0:00:31]}  Kg8 {[%clk 0:00:02]} 51. Kxf6+ {[%clk 0:00:32]}  Kh8 {[%clk 0:00:01]} 52. Rh1+ {[%clk 0:00:33]}  Kg8 {[%clk 0:00:02]} 53. Rg7+ {[%clk 0:00:34]}  Kf8 {[%clk 0:00:02]} 54. Rh8# {[%clk 0:00:35]} 1-0


[Site "https://www.chess.com"]

[Event "Titled Tuesday Blitz November 15 Early 2022"]
[White "Gutkin, Ilya"]
[Black "Salman, Pavel"]
[WhiteFideId "16203470"]
[BlackFideId "24153753"]
[WhiteElo "2265"]
[BlackElo "2187"]
[Result "1/2-1/2"]
[Round "05"]
[TimeControl "180+1"]
[Date "2022.11.16"]
[WhiteClock "0:00:12"]
[BlackClock "0:00:32"]

1. Nf3 {[%clk 0:03:00]}  c5 {[%clk 0:02:58]} 2. b3 {[%clk 0:03:00]}  Nc6 {[%clk 0:02:57]} 3. Bb2 {[%clk 0:03:00]}  Nf6 {[%clk 0:02:57]} 4. d4 {[%clk 0:02:57]}  cxd4 {[%clk 0:02:57]} 5. Nxd4 {[%clk 0:02:58]}  Nxd4 {[%clk 0:02:55]} 6. Qxd4 {[%clk 0:02:56]}  b6 {[%clk 0:02:55]} 7. c4 {[%clk 0:02:54]}  Bb7 {[%clk 0:02:55]} 8. Nc3 {[%clk 0:02:53]}  e6 {[%clk 0:02:54]} 9. e3 {[%clk 0:02:16]}  Bc5 {[%clk 0:02:50]} 10. Qd2 {[%clk 0:02:15]}  Qe7 {[%clk 0:02:44]} 11. Bd3 {[%clk 0:02:11]}  O-O {[%clk 0:02:40]} 12. O-O {[%clk 0:02:10]}  d5 {[%clk 0:02:39]} 13. cxd5 {[%clk 0:02:09]}  Nxd5 {[%clk 0:02:40]} 14. Be4 {[%clk 0:01:57]}  Rfd8 {[%clk 0:02:31]} 15. Nxd5 {[%clk 0:01:56]}  Bxd5 {[%clk 0:02:32]} 16. Bxd5 {[%clk 0:01:56]}  Rxd5 {[%clk 0:02:33]} 17. Qe2 {[%clk 0:01:49]}  Rad8 {[%clk 0:02:28]} 18. Rfd1 {[%clk 0:01:49]}  Ba3 {[%clk 0:02:23]} 19. Rxd5 {[%clk 0:01:37]}  Rxd5 {[%clk 0:02:21]} 20. Rc1 {[%clk 0:01:37]}  h5 {[%clk 0:02:08]} 21. e4 {[%clk 0:01:02]}  Bxb2 {[%clk 0:01:59]} 22. Qxb2 {[%clk 0:00:31]}  Rc5 {[%clk 0:01:55]} 23. g3 {[%clk 0:00:21]}  h4 {[%clk 0:01:53]} 24. Rxc5 {[%clk 0:00:19]}  Qxc5 {[%clk 0:01:51]} 25. Kg2 {[%clk 0:00:17]}  Qh5 {[%clk 0:01:47]} 26. h3 {[%clk 0:00:13]}  hxg3 {[%clk 0:01:46]} 27. fxg3 {[%clk 0:00:12]}  a5 {[%clk 0:01:39]} 28. Qd4 {[%clk 0:00:12]}  Qe2+ {[%clk 0:01:33]} 29. Kg1 {[%clk 0:00:13]}  Qe1+ {[%clk 0:01:13]} 30. Kg2 {[%clk 0:00:12]}  f6 {[%clk 0:01:13]} 31. Qxb6 {[%clk 0:00:10]}  Qxe4+ {[%clk 0:01:13]} 32. Kf2 {[%clk 0:00:10]}  Qc2+ {[%clk 0:01:10]} 33. Kf3 {[%clk 0:00:10]}  Qc3+ {[%clk 0:01:09]} 34. Kf2 {[%clk 0:00:10]}  e5 {[%clk 0:01:02]} 35. Qe3 {[%clk 0:00:11]}  Qc2+ {[%clk 0:01:00]} 36. Qe2 {[%clk 0:00:11]}  Qf5+ {[%clk 0:01:00]} 37. Kg2 {[%clk 0:00:11]}  e4 {[%clk 0:01:01]} 38. h4 {[%clk 0:00:11]}  Qd5 {[%clk 0:00:56]} 39. Qc4 {[%clk 0:00:11]}  Qxc4 {[%clk 0:00:56]} 40. bxc4 {[%clk 0:00:11]}  Kf7 {[%clk 0:00:57]} 41. g4 {[%clk 0:00:11]}  Ke6 {[%clk 0:00:57]} 42. Kf2 {[%clk 0:00:11]}  a4 {[%clk 0:00:38]} 43. Ke3 {[%clk 0:00:11]}  Ke5 {[%clk 0:00:39]} 44. a3 {[%clk 0:00:07]}  g6 {[%clk 0:00:38]} 45. c5 {[%clk 0:00:04]}  Kd5 {[%clk 0:00:38]} 46. c6 {[%clk 0:00:04]}  Kxc6 {[%clk 0:00:39]} 47. Kxe4 {[%clk 0:00:05]}  Kd6 {[%clk 0:00:27]} 48. Kf4 {[%clk 0:00:05]}  Ke6 {[%clk 0:00:25]} 49. h5 {[%clk 0:00:05]}  Kf7 {[%clk 0:00:23]} 50. hxg6+ {[%clk 0:00:02]}  Kxg6 {[%clk 0:00:24]} 51. Kf3 {[%clk 0:00:02]}  Kg5 {[%clk 0:00:24]} 52. Kg3 {[%clk 0:00:02]}  Kh6 {[%clk 0:00:24]} 53. Kf4 {[%clk 0:00:03]}  Kg6 {[%clk 0:00:24]} 54. Kf3 {[%clk 0:00:03]}  Kf7 {[%clk 0:00:24]} 55. Kf4 {[%clk 0:00:03]}  Ke6 {[%clk 0:00:25]} 56. Ke4 {[%clk 0:00:03]}  Ke7 {[%clk 0:00:23]} 57. Kf5 {[%clk 0:00:04]}  Kf7 {[%clk 0:00:23]} 58. g5 {[%clk 0:00:05]}  fxg5 {[%clk 0:00:24]} 59. Kxg5 {[%clk 0:00:06]}  Ke6 {[%clk 0:00:25]} 60. Kf4 {[%clk 0:00:07]}  Kd5 {[%clk 0:00:26]} 61. Ke3 {[%clk 0:00:08]}  Kc4 {[%clk 0:00:27]} 62. Kd2 {[%clk 0:00:08]}  Kb3 {[%clk 0:00:27]} 63. Kc1 {[%clk 0:00:08]}  Ka2 {[%clk 0:00:28]} 64. Kc2 {[%clk 0:00:09]}  Kxa3 {[%clk 0:00:29]} 65. Kb1 {[%clk 0:00:10]}  Kb3 {[%clk 0:00:29]} 66. Ka1 {[%clk 0:00:10]}  a3 {[%clk 0:00:30]} 67. Kb1 {[%clk 0:00:11]}  a2+ {[%clk 0:00:31]} 68. Ka1 {[%clk 0:00:12]}  Ka3 {[%clk 0:00:32]} 1/2-1/2


[Site "https://www.chess.com"]

[Event "Titled Tuesday Blitz November 15 Early 2022"]
[White "Harshavardhan G B"]
[Black "Taboas Rodriguez, Daniel"]
[WhiteFideId "25059009"]
[BlackFideId "2208466"]
[WhiteElo "2333"]
[BlackElo "2329"]
[Result "1-0"]
[Round "05"]
[TimeControl "180+1"]
[Date "2022.11.16"]
[WhiteClock "0:01:32"]
[BlackClock "0:00:59"]

1. d4 {[%clk 0:02:21]}  Nf6 {[%clk 0:02:58]} 2. c4 {[%clk 0:02:21]}  g6 {[%clk 0:02:58]} 3. Nc3 {[%clk 0:02:20]}  Bg7 {[%clk 0:02:57]} 4. e4 {[%clk 0:02:19]}  d6 {[%clk 0:02:56]} 5. Nf3 {[%clk 0:02:20]}  O-O {[%clk 0:02:57]} 6. Be2 {[%clk 0:02:20]}  e5 {[%clk 0:02:57]} 7. d5 {[%clk 0:02:21]}  Nbd7 {[%clk 0:02:54]} 8. Nd2 {[%clk 0:02:21]}  a5 {[%clk 0:02:48]} 9. g4 {[%clk 0:02:21]}  Nc5 {[%clk 0:02:40]} 10. h4 {[%clk 0:02:20]}  c6 {[%clk 0:02:35]} 11. g5 {[%clk 0:02:19]}  Ne8 {[%clk 0:02:32]} 12. Nb3 {[%clk 0:02:18]}  Nxb3 {[%clk 0:02:29]} 13. Qxb3 {[%clk 0:02:19]}  f5 {[%clk 0:02:27]} 14. gxf6 {[%clk 0:02:18]}  Nxf6 {[%clk 0:02:27]} 15. Be3 {[%clk 0:02:15]}  Ng4 {[%clk 0:02:22]} 16. O-O-O {[%clk 0:02:08]}  Nxf2 {[%clk 0:02:18]} 17. Bxf2 {[%clk 0:02:03]}  Rxf2 {[%clk 0:02:19]} 18. dxc6 {[%clk 0:02:03]}  bxc6 {[%clk 0:01:55]} 19. c5+ {[%clk 0:02:02]}  d5 {[%clk 0:01:55]} 20. exd5 {[%clk 0:02:01]}  cxd5 {[%clk 0:01:56]} 21. Rxd5 {[%clk 0:01:57]}  Bh6+ {[%clk 0:01:28]} 22. Kb1 {[%clk 0:01:42]}  Bf5+ {[%clk 0:01:28]} 23. Ka1 {[%clk 0:01:41]}  Qe7 {[%clk 0:01:01]} 24. Rd8+ {[%clk 0:01:30]}  Kg7 {[%clk 0:01:00]} 25. Qg8+ {[%clk 0:01:31]}  Kf6 {[%clk 0:00:59]} 26. Nd5# {[%clk 0:01:32]} 1-0


[Site "https://www.chess.com"]

[Event "Titled Tuesday Blitz November 15 Early 2022"]
[White "Hirneise, Jens"]
[Black "Kobo, Ori"]
[WhiteFideId "24614734"]
[BlackFideId "2812320"]
[WhiteElo "2344"]
[BlackElo "2447"]
[Result "0-1"]
[Round "05"]
[TimeControl "180+1"]
[Date "2022.11.16"]
[WhiteClock "0:00:09"]
[BlackClock "0:00:41"]

1. Nf3 {[%clk 0:03:00]}  d5 {[%clk 0:02:59]} 2. g3 {[%clk 0:03:00]}  c5 {[%clk 0:02:57]} 3. c4 {[%clk 0:03:00]}  d4 {[%clk 0:02:56]} 4. b4 {[%clk 0:03:00]}  Nc6 {[%clk 0:02:53]} 5. bxc5 {[%clk 0:02:50]}  e5 {[%clk 0:02:53]} 6. d3 {[%clk 0:02:50]}  Bxc5 {[%clk 0:02:52]} 7. Bg2 {[%clk 0:02:51]}  Nf6 {[%clk 0:02:43]} 8. O-O {[%clk 0:02:50]}  h6 {[%clk 0:02:43]} 9. Ba3 {[%clk 0:02:46]}  Qe7 {[%clk 0:02:42]} 10. Bxc5 {[%clk 0:02:42]}  Qxc5 {[%clk 0:02:43]} 11. Nbd2 {[%clk 0:02:42]}  O-O {[%clk 0:02:44]} 12. Nb3 {[%clk 0:02:36]}  Qd6 {[%clk 0:02:41]} 13. Nfd2 {[%clk 0:02:33]}  Bf5 {[%clk 0:02:36]} 14. c5 {[%clk 0:02:27]}  Qc7 {[%clk 0:02:34]} 15. Nc4 {[%clk 0:02:28]}  Rad8 {[%clk 0:02:27]} 16. Rc1 {[%clk 0:02:24]}  Nd5 {[%clk 0:02:20]} 17. Nd6 {[%clk 0:02:21]}  Nc3 {[%clk 0:02:14]} 18. Rxc3 {[%clk 0:02:19]}  dxc3 {[%clk 0:02:12]} 19. Nxf5 {[%clk 0:02:18]}  Nd4 {[%clk 0:02:05]} 20. Nfxd4 {[%clk 0:02:11]}  exd4 {[%clk 0:02:06]} 21. e3 {[%clk 0:02:12]}  dxe3 {[%clk 0:01:59]} 22. fxe3 {[%clk 0:02:13]}  Qe5 {[%clk 0:01:57]} 23. Re1 {[%clk 0:02:10]}  a5 {[%clk 0:01:40]} 24. d4 {[%clk 0:02:04]}  Qe7 {[%clk 0:01:29]} 25. Qc2 {[%clk 0:02:01]}  a4 {[%clk 0:01:28]} 26. Nc1 {[%clk 0:02:00]}  Rxd4 {[%clk 0:01:28]} 27. Qxc3 {[%clk 0:01:56]}  Rd7 {[%clk 0:01:27]} 28. Ne2 {[%clk 0:01:48]}  Rfd8 {[%clk 0:01:25]} 29. Nd4 {[%clk 0:01:48]}  Qe5 {[%clk 0:01:16]} 30. Qb4 {[%clk 0:01:42]}  Re7 {[%clk 0:01:09]} 31. Nf3 {[%clk 0:01:11]}  Qc7 {[%clk 0:01:06]} 32. Rc1 {[%clk 0:01:06]}  Rxe3 {[%clk 0:01:05]} 33. Qxa4 {[%clk 0:01:05]}  Qe7 {[%clk 0:01:01]} 34. Qb5 {[%clk 0:00:45]}  Re2 {[%clk 0:00:57]} 35. Qb3 {[%clk 0:00:39]}  Re3 {[%clk 0:00:53]} 36. Qb2 {[%clk 0:00:33]}  Rxf3 {[%clk 0:00:45]} 37. Kh1 {[%clk 0:00:10]}  Re3 {[%clk 0:00:42]} 38. Qxb7 {[%clk 0:00:09]}  Re1+ {[%clk 0:00:41]} 0-1


[Site "https://www.chess.com"]

[Event "Titled Tuesday Blitz November 15 Early 2022"]
[White "Ibarra Jerez, Jose Carlos"]
[Black "Perez Gormaz, Matias"]
[WhiteFideId "2226332"]
[BlackFideId "3406342"]
[WhiteElo "2638"]
[BlackElo "2341"]
[Result "1-0"]
[Round "05"]
[TimeControl "180+1"]
[Date "2022.11.15"]
[WhiteClock "0:00:05"]
[BlackClock "0:00:01"]

1. e4 {[%clk 0:03:00]}  e5 {[%clk 0:02:59]} 2. Nf3 {[%clk 0:03:00]}  Nc6 {[%clk 0:03:00]} 3. d4 {[%clk 0:03:00]}  exd4 {[%clk 0:03:00]} 4. Nxd4 {[%clk 0:03:01]}  Bb4+ {[%clk 0:03:00]} 5. c3 {[%clk 0:03:00]}  Bc5 {[%clk 0:03:00]} 6. Be3 {[%clk 0:03:01]}  Bb6 {[%clk 0:03:01]} 7. Nf5 {[%clk 0:03:01]}  g6 {[%clk 0:02:57]} 8. Bxb6 {[%clk 0:03:00]}  axb6 {[%clk 0:02:58]} 9. Ne3 {[%clk 0:03:01]}  Nf6 {[%clk 0:02:59]} 10. f3 {[%clk 0:03:01]}  Qe7 {[%clk 0:02:58]} 11. c4 {[%clk 0:02:56]}  Qb4+ {[%clk 0:02:57]} 12. Qd2 {[%clk 0:02:56]}  Qxd2+ {[%clk 0:02:57]} 13. Kxd2 {[%clk 0:02:52]}  d6 {[%clk 0:02:58]} 14. Nc3 {[%clk 0:02:52]}  Be6 {[%clk 0:02:58]} 15. Bd3 {[%clk 0:02:46]}  Nd7 {[%clk 0:02:58]} 16. b3 {[%clk 0:02:37]}  Nc5 {[%clk 0:02:57]} 17. Bc2 {[%clk 0:02:31]}  Kd7 {[%clk 0:02:54]} 18. a3 {[%clk 0:02:28]}  Kd8 {[%clk 0:02:40]} 19. b4 {[%clk 0:02:09]}  Nd7 {[%clk 0:02:39]} 20. f4 {[%clk 0:02:03]}  f6 {[%clk 0:02:38]} 21. g3 {[%clk 0:02:02]}  Re8 {[%clk 0:02:29]} 22. h4 {[%clk 0:02:01]}  h5 {[%clk 0:02:06]} 23. Rhf1 {[%clk 0:01:54]}  Nd4 {[%clk 0:02:00]} 24. Bd1 {[%clk 0:01:49]}  c5 {[%clk 0:01:56]} 25. b5 {[%clk 0:01:38]}  f5 {[%clk 0:01:53]} 26. exf5 {[%clk 0:01:30]}  Nxf5 {[%clk 0:01:53]} 27. Nxf5 {[%clk 0:01:28]}  Bxf5 {[%clk 0:01:54]} 28. Bf3 {[%clk 0:01:26]}  Kc7 {[%clk 0:01:29]} 29. Nd5+ {[%clk 0:01:25]}  Kb8 {[%clk 0:01:29]} 30. a4 {[%clk 0:01:18]}  Re6 {[%clk 0:00:55]} 31. Rfe1 {[%clk 0:00:46]}  Rxe1 {[%clk 0:00:37]} 32. Kxe1 {[%clk 0:00:34]}  Ka7 {[%clk 0:00:37]} 33. Kd2 {[%clk 0:00:29]}  Re8 {[%clk 0:00:37]} 34. a5 {[%clk 0:00:25]}  bxa5 {[%clk 0:00:37]} 35. Rxa5+ {[%clk 0:00:26]}  Kb8 {[%clk 0:00:37]} 36. b6 {[%clk 0:00:26]}  Re6 {[%clk 0:00:10]} 37. Ra3 {[%clk 0:00:11]}  Re8 {[%clk 0:00:08]} 38. Be2 {[%clk 0:00:09]}  Rd8 {[%clk 0:00:03]} 39. Ra1 {[%clk 0:00:08]}  Be4 {[%clk 0:00:03]} 40. Nc3 {[%clk 0:00:08]}  Bc6 {[%clk 0:00:03]} 41. Rb1 {[%clk 0:00:08]}  Re8 {[%clk 0:00:03]} 42. Bd3 {[%clk 0:00:08]}  Rg8 {[%clk 0:00:03]} 43. Be4 {[%clk 0:00:07]}  Nf8 {[%clk 0:00:03]} 44. Bd5 {[%clk 0:00:07]}  Rg7 {[%clk 0:00:03]} 45. Ne4 {[%clk 0:00:07]}  Bxd5 {[%clk 0:00:03]} 46. cxd5 {[%clk 0:00:07]}  Rd7 {[%clk 0:00:04]} 47. Nf6 {[%clk 0:00:07]}  Rd8 {[%clk 0:00:04]} 48. Re1 {[%clk 0:00:08]}  Kc8 {[%clk 0:00:03]} 49. Re7 {[%clk 0:00:07]}  Nd7 {[%clk 0:00:04]} 50. Nxd7 {[%clk 0:00:04]}  Rxd7 {[%clk 0:00:05]} 51. Re6 {[%clk 0:00:05]}  Re7 {[%clk 0:00:01]} 52. Rxe7 {[%clk 0:00:05]} 1-0


[Site "https://www.chess.com"]

[Event "Titled Tuesday Blitz November 15 Early 2022"]
[White "Indjic, Aleksandar"]
[Black "Nakamura, Hikaru"]
[WhiteFideId "911925"]
[BlackFideId "2016192"]
[WhiteElo "2592"]
[BlackElo "2909"]
[Result "0-1"]
[Round "05"]
[TimeControl "180+1"]
[Date "2022.11.15"]
[WhiteClock "0:00:06"]
[BlackClock "0:00:56"]

1. d4 {[%clk 0:03:00]}  Nf6 {[%clk 0:02:56]} 2. c4 {[%clk 0:03:01]}  c5 {[%clk 0:02:56]} 3. d5 {[%clk 0:02:59]}  g6 {[%clk 0:02:54]} 4. Nc3 {[%clk 0:02:59]}  Bg7 {[%clk 0:02:53]} 5. e4 {[%clk 0:02:59]}  d6 {[%clk 0:02:53]} 6. Nf3 {[%clk 0:02:59]}  O-O {[%clk 0:02:53]} 7. h3 {[%clk 0:02:56]}  e5 {[%clk 0:02:53]} 8. g4 {[%clk 0:02:53]}  Ne8 {[%clk 0:02:50]} 9. Bd3 {[%clk 0:02:52]}  Nc7 {[%clk 0:02:47]} 10. Rg1 {[%clk 0:02:49]}  Nd7 {[%clk 0:02:42]} 11. Be3 {[%clk 0:02:49]}  b5 {[%clk 0:02:42]} 12. cxb5 {[%clk 0:02:48]}  a6 {[%clk 0:02:43]} 13. a4 {[%clk 0:02:48]}  axb5 {[%clk 0:02:40]} 14. axb5 {[%clk 0:02:49]}  Rb8 {[%clk 0:02:39]} 15. Nd2 {[%clk 0:02:48]}  Nb6 {[%clk 0:02:39]} 16. b3 {[%clk 0:02:12]}  Bd7 {[%clk 0:02:37]} 17. Qc2 {[%clk 0:01:54]}  Nc8 {[%clk 0:02:26]} 18. Ke2 {[%clk 0:01:33]}  Nxb5 {[%clk 0:02:16]} 19. Nxb5 {[%clk 0:01:33]}  Bxb5 {[%clk 0:02:17]} 20. Bxb5 {[%clk 0:01:33]}  Rxb5 {[%clk 0:02:18]} 21. Nc4 {[%clk 0:01:33]}  Bf6 {[%clk 0:02:09]} 22. g5 {[%clk 0:01:32]}  Be7 {[%clk 0:02:09]} 23. Ra8 {[%clk 0:01:30]}  Qd7 {[%clk 0:02:08]} 24. Rg3 {[%clk 0:01:04]}  Nb6 {[%clk 0:02:04]} 25. Rxf8+ {[%clk 0:00:59]}  Kxf8 {[%clk 0:02:03]} 26. Bd2 {[%clk 0:00:59]}  Na8 {[%clk 0:01:50]} 27. h4 {[%clk 0:00:59]}  Nc7 {[%clk 0:01:49]} 28. Qa2 {[%clk 0:00:58]}  Rb7 {[%clk 0:01:44]} 29. f4 {[%clk 0:00:48]}  exf4 {[%clk 0:01:41]} 30. Qa1 {[%clk 0:00:46]}  Kg8 {[%clk 0:01:40]} 31. Bxf4 {[%clk 0:00:45]}  Nb5 {[%clk 0:01:41]} 32. Be3 {[%clk 0:00:45]}  Ra7 {[%clk 0:01:34]} 33. Qh1 {[%clk 0:00:25]}  Bf8 {[%clk 0:01:27]} 34. h5 {[%clk 0:00:19]}  Bg7 {[%clk 0:01:28]} 35. hxg6 {[%clk 0:00:14]}  hxg6 {[%clk 0:01:25]} 36. Qh4 {[%clk 0:00:12]}  Ra2+ {[%clk 0:01:25]} 37. Kf3 {[%clk 0:00:12]}  Nd4+ {[%clk 0:01:16]} 38. Bxd4 {[%clk 0:00:12]}  Bxd4 {[%clk 0:01:17]} 39. Rh3 {[%clk 0:00:12]}  Rf2+ {[%clk 0:01:00]} 40. Kg3 {[%clk 0:00:12]}  Rc2 {[%clk 0:01:01]} 41. Qh7+ {[%clk 0:00:11]}  Kf8 {[%clk 0:01:01]} 42. e5 {[%clk 0:00:06]}  Rc3+ {[%clk 0:00:56]} 43. Kg2 {[%clk 0:00:06]}  Qg4+ {[%clk 0:00:56]} 0-1


[Site "https://www.chess.com"]